[Event "AUT-ch U18 Boys 2022"]
[Site "Sankt Veit an der Glan"]
[Date "2022.04.12"]
[Round "5.7"]
[White "Weichhart, Daniel"]
[Black "Hechl, Fabian"]
[Result "1/2-1/2"]
[ECO "A40"]
[WhiteElo "2032"]
[BlackElo "2023"]
[Annotator "RC"]
[PlyCount "60"]
[EventDate "2022.04.11"]
[EventType "swiss"]
[EventCountry "AUT"]
[SourceTitle "playchess.com"]
[Source "ChessBase"]
[SourceQuality "1"]
[TimeControl "5400+30"]

1. d4 {[%emt 0:00:03]} e6 {[%emt 0:00:04]} 2. c4 {[%emt 0:00:22]} b6 {[%emt 0:00:04]} 3. e4 {[%emt 0:01:09]} Bb4+ {[%emt 0:00:06]} 4. Bd2 {[%emt 0:01:15]} Bxd2+ {[%emt 0:00:07]} 5. Qxd2 {[%emt 0:00:12]} d5 {[%emt 0:00:18]} 6. cxd5 {[%emt 0:03:25]} exd5 {[%emt 0:01:10]} 7. e5 {[%emt 0:00:35]} Ne7 {[%emt 0:04:11]} 8. Nc3 {[%emt 0:00:36]} O-O {[%emt 0:02:41]} 9. O-O-O {[%emt 0:03:25]} a6 {[%emt 0:04:58]} 10. h3 {[%emt 0:03:35]} Be6 {[%emt 0:09:39]} 11. f4 {[%emt 0:10:08]} c5 {[%emt 0:04:52]} 12. Nf3 {[%emt 0:01:24]} Nbc6 {[%emt 0:14:46]} 13. g4 {[%emt 0:04:22]} cxd4 {[%emt 0:10:15]} 14. Ne2 {[%emt 0:00:20]} b5 {[%emt 0:20:13]} 15. Nexd4 {[%emt 0:01:32]} Qa5 {[%emt 0:02:06]} 16. Qxa5 {[%emt 0:02:50]} Nxa5 {[%emt 0:00:01]} 17. b3 {[%emt 0:00:38]} Rac8+ {[%emt 0:02:12]} 18. Kb2 {[%emt 0:01:47]} Nb7 {[%emt 0:01:54]} 19. Bd3 {[%emt 0:03:58]} Nc5 {[%emt 0:01:00]} 20. Rhe1 {[%emt 0:08:19]} Ng6 {[%emt 0:07:08]} 21. Bxg6 {[%emt 0:04:47]} hxg6 {[%emt 0:00:57]} 22. Ng5 {[%emt 0:00:49]} Bd7 {[%emt 0:01:50]} 23. Rd2 {[%emt 0:06:07]} Ne6 {[%emt 0:04:00]} 24. Ngxe6 {[%emt 0:00:24]} fxe6 {[%emt 0:00:39]} 25. Rf2 {[%emt 0:04:26]} Kf7 {[%emt 0:04:11]} 26. Rc1 {[%emt 0:02:34]} Ke7 {[%emt 0:02:20]} 27. Rxc8 {[%emt 0:01:36]} Rxc8 {[%emt 0:00:01]} 28. Rf3 {[%emt 0:01:45]} a5 {[%emt 0:01:59]} 29. a3 {[%emt 0:04:57]} a4 {[%emt 0:00:27]} 30. b4 {[%emt 0:00:54]} Rc4 {[%emt 0:00:19]} 1/2-1/2

[Event "AUT-ch U18 Boys 2022"]
[Site "Sankt Veit an der Glan"]
[Date "2022.04.12"]
[Round "5.9"]
[White "Koestner, Laurin"]
[Black "Martetschlaeger, Stefan"]
[Result "0-1"]
[ECO "B31"]
[WhiteElo "1746"]
[BlackElo "1679"]
[Annotator "NA RC"]
[PlyCount "46"]
[EventDate "2022.04.11"]
[EventType "swiss"]
[EventCountry "AUT"]
[SourceTitle "playchess.com"]
[Source "ChessBase"]
[SourceQuality "1"]
[TimeControl "5400+30"]

1. e4 {[%emt 0:00:03]} c5 {[%emt 0:00:12]} 2. Nf3 {[%emt 0:00:01]} Nc6 {[%emt 0:00:08]} 3. Bb5 {[%emt 0:00:02]} g6 {[%emt 0:00:16]} 4. Bxc6 {[%emt 0:00:02]} dxc6 {[%emt 0:00:08]} 5. d3 {[%emt 0:00:02]} Bg7 {[%emt 0:00:20]} 6. h3 {[%emt 0:00:01]} Nf6 {[%emt 0:00:39]} 7. Nc3 {[%emt 0:00:02]} O-O {[%emt 0:00:23]} 8. Be3 {[%emt 0:00:02]} b6 {[%emt 0:00:21]} 9. Bf4 {[%emt 0:00:02]} Be6 {[%emt 0:01:00]} 10. Qd2 {[%emt 0:01:00]} Qd7 {[%emt 0:01:03]} 11. Ng5 {[%emt 0:01:34]} Rfd8 {[%emt 0:02:37]} 12. O-O {[%emt 0:01:36]} c4 {[%emt 0:04:56]} 13. Rad1 {[%emt 0:09:33]} cxd3 {[%emt 0:02:12]} 14. cxd3 {[%emt 0:00:41]} c5 {[%emt 0:00:56]} 15. Nxe6 {[%emt 0:03:23]} Qxe6 {[%emt 0:00:49]} 16. Bh6 {[%emt 0:00:02]} Rd7 {[%emt 0:07:52]} 17. Bxg7 {[%emt 0:00:07]} Kxg7 {[%emt 0:00:04]} 18. f4 {[%emt 0:00:58]} Rad8 {[%emt 0:02:19]} 19. f5 {[%emt 0:00:36]} Qe5 {[%emt 0:00:56]} 20. Qe3 {[%emt 0:01:26]} Qd4 {[%emt 0:03:57]} 21. Rf3 {[%emt 0:00:56]} Qxe3+ {[%emt 0:01:49]} 22. Rxe3 {[%emt 0:00:02]} c4 {[%emt 0:00:43]} 23. fxg6 {[%emt 0:02:24]} hxg6 {[%emt 0:00:25]} 0-1

[Event "AUT-ch U18 Boys 2022"]
[Site "Sankt Veit an der Glan"]
[Date "2022.04.12"]
[Round "5.10"]
[White "Liotta, Marcel"]
[Black "Braun, Hagen"]
[Result "1-0"]
[ECO "D05"]
[WhiteElo "1551"]
[BlackElo "1252"]
[Annotator "NA RC"]
[PlyCount "69"]
[EventDate "2022.04.11"]
[EventType "swiss"]
[EventCountry "AUT"]
[SourceTitle "playchess.com"]
[Source "ChessBase"]
[SourceQuality "1"]
[TimeControl "5400+30"]

1. d4 {[%emt 0:00:01]} d5 {[%emt 0:00:05]} 2. Nf3 {[%emt 0:00:03]} Nf6 {[%emt 0:00:04]} 3. e3 {[%emt 0:00:03]} e6 {[%emt 0:00:08]} 4. Bd3 {[%emt 0:00:04]} c5 {[%emt 0:00:11]} 5. b3 {[%emt 0:00:02]} Be7 {[%emt 0:00:11]} 6. Bb2 {[%emt 0:00:06]} Nc6 {[%emt 0:00:22]} 7. a3 {[%emt 0:00:03]} O-O {[%emt 0:00:16]} 8. Nbd2 {[%emt 0:00:02]} a6 {[%emt 0:00:47]} 9. O-O {[%emt 0:00:24]} b6 {[%emt 0:06:31]} 10. Ne5 {[%emt 0:00:27]} Nxe5 {[%emt 0:00:26]} 11. dxe5 {[%emt 0:00:03]} Nd7 {[%emt 0:00:35]} 12. f4 {[%emt 0:00:04]} Bb7 {[%emt 0:06:22]} 13. Rf3 {[%emt 0:07:26]} c4 {[%emt 0:00:44]} 14. Bxh7+ {[%emt 0:04:06]} Kxh7 {[%emt 0:01:56]} 15. Rh3+ {[%emt 0:00:02]} Kg8 {[%emt 0:00:01]} 16. Qh5 {[%emt 0:00:07]} f6 {[%emt 0:00:05]} 17. Qh7+ {[%emt 0:00:24]} Kf7 {[%emt 0:00:09]} 18. Qh5+ {[%emt 0:00:07]} g6 {[%emt 0:03:57]} 19. Qh7+ {[%emt 0:00:40]} Ke8 {[%emt 0:00:05]} 20. Qxg6+ {[%emt 0:00:03]} Rf7 {[%emt 0:00:13]} 21. Rh8+ {[%emt 0:00:06]} Bf8 {[%emt 0:01:09]} 22. bxc4 {[%emt 0:31:15]} b5 {[%emt 0:01:23]} 23. exf6 {[%emt 0:02:25]} Nxf6 {[%emt 0:00:24]} 24. Nf3 {[%emt 0:00:49]} dxc4 {[%emt 0:04:25]} 25. Ne5 {[%emt 0:01:20]} Qe7 {[%emt 0:00:27]} 26. Nxf7 {[%emt 0:07:14]} Qxf7 {[%emt 0:00:29]} 27. Qxf6 {[%emt 0:00:03]} Qxf6 {[%emt 0:01:39]} 28. Bxf6 {[%emt 0:00:04]} Kf7 {[%emt 0:00:11]} 29. Bg5 {[%emt 0:01:09]} Ra7 {[%emt 0:00:52]} 30. Rd1 {[%emt 0:00:17]} Bc6 {[%emt 0:00:17]} 31. Rh7+ {[%emt 0:01:04]} Bg7 {[%emt 0:00:07]} 32. Bh6 {[%emt 0:01:31]} Kg6 {[%emt 0:00:12]} 33. Rxg7+ {[%emt 0:00:04]} Rxg7 {[%emt 0:00:07]} 34. Bxg7 {[%emt 0:00:03]} Kxg7 {[%emt 0:00:00]} 35. Rd6 {[%emt 0:00:00]} 1-0

[Event "AUT-ch U18 Boys 2022"]
[Site "Sankt Veit an der Glan"]
[Date "2022.04.13"]
[Round "6.1"]
[White "Kristoferitsch, Daniel"]
[Black "Tumanyan, Gor"]
[Result "1-0"]
[ECO "A56"]
[WhiteElo "2253"]
[BlackElo "1818"]
[Annotator "TA"]
[PlyCount "97"]
[EventDate "2022.04.11"]
[EventType "swiss"]
[EventCountry "AUT"]
[SourceTitle "playchess.com"]
[Source "ChessBase"]
[SourceQuality "1"]
[TimeControl "5400+30"]

{[%evp 11,97,52,64,55,52,50,64,49,62,40,43,29,38,28,27,32,45,48,38,10,15,0,31,0,0,-21,0,0,0,0,0,0,0,4,17,13,9,18,207,201,207,201,201,182,185,169,169,166,159,113,125,113,225,131,149,137,144,147,145,110,110,110,110,110,117,113,119,124,163,110,139,137,144,144,187,192,466,439,648,655,672,299,12829,12825,12836,12836,29991,29992]} 1. d4 {[%emt 0:00:04]} Nf6 {[%emt 0:00:03]} 2. c4 {[%emt 0:00:10]} c5 {[%emt 0:00:04]} 3. d5 {[%emt 0:00:08]} g6 {[%emt 0:00:17]} 4. Nc3 {[%emt 0:00:10]} Bg7 {[%emt 0:00:02]} 5. e4 {[%emt 0:00:25]} d6 {[%emt 0:00:05]} 6. Nf3 {[%emt 0:01:28]} Bg4 {[%emt 0:02:07]} 7. h3 {[%emt 0:04:50] E90: King's Indian: Classical: Early deviations and 6 h3.} Bxf3 {[%emt 0:00:52]} 8. Qxf3 {[%emt 0:00:09]} O-O {[%emt 0:03:51]} 9. Be2 {[%emt 0:01:04] &Bianco is more active. White is slightly better.} a6 {[%emt 0:20:11]} 10. a4 {[%emt 0:02:24]} e6 {[%emt 0:15:53] [#]} 11. Qg3 $146 {[%emt 0:08:15]} ({Predecessor:} 11. O-O exd5 12. cxd5 Nbd7 13. Bf4 Ne8 14. Qg3 Rb8 15. a5 Qc7 16. Bg5 Nef6 17. Bf4 Ne8 18. Bg5 Nef6 19. Bf4 Ne5 20. Bxe5 dxe5 {0-1 (46) Hepworth,P-Gharamian,T (2654) London 2015}) 11... Re8 {[%emt 0:06:10]} 12. O-O {[%emt 0:00:18]} exd5 {[%emt 0:00:53]} 13. exd5 {[%emt 0:00:12]} Nbd7 {[%emt 0:15:44][%cal Bb8d7,Bd7e5,Be5g4][%mdl 32]} 14. Bf4 {[%emt 0:05:35]} ({But not} 14. Qxd6 $2 Re5 15. Bg5 Rxg5 $19) 14... Ne5 {[%emt 0:00:42]} 15. h4 {[%emt 0:00:15]} h5 {[%emt 0:11:08]} 16. Bg5 {[%emt 0:04:40]} Qd7 {[%emt 0:10:11]} 17. Rae1 {[%emt 0:13:49]} Neg4 {[%emt 0:05:00]} 18. Bf4 {[%emt 0:02:55]} Rad8 {[%emt 0:02:50]} 19. Bd3 {[%emt 0:01:24]} Rxe1 {[%emt 0:01:35]} 20. Rxe1 {[%emt 0:00:11]} Re8 {[%emt 0:01:26]} 21. f3 {[%emt 0:15:03]} Ne5 {[%emt 0:01:06]} 22. Bxe5 {[%emt 0:00:58]} Rxe5 {[%emt 0:00:04]} 23. Rxe5 {[%emt 0:00:12]} dxe5 {[%emt 0:00:01]} 24. Qxe5 {[%emt 0:00:21]} Ng4 $2 {[%emt 0:00:24]} 25. Qb8+ $18 {[%emt 0:00:09]} Kh7 {[%emt 0:00:12][%cal Od7e7] And now ...Qe7! would win.} 26. fxg4 {[%emt 0:00:31]} Qxg4 {[%emt 0:00:43] Strongly threatening ...Qd4+.} 27. Ne2 {[%emt 0:05:11] Inhibits Qd4+.} ({Worse is} 27. Qxb7 Qd4+ 28. Kf1 Qxd3+ 29. Ne2 Qf5+ 30. Ke1 Qf6 $11) 27... Qxh4 {[%emt 0:00:54]} 28. g3 {[%emt 0:00:51]} ({And not} 28. Qxb7 Qe1+ 29. Kh2 Qh4+ 30. Kg1 Qe1+ 31. Kh2 Qh4+ 32. Kg1 $11) 28... Qe7 {[%emt 0:01:12]} 29. Qf4 {[%emt 0:00:45] Against Qe3+} Bxb2 {[%emt 0:00:22]} 30. Kg2 {[%emt 0:00:57]} (30. d6 $142 Qe6 31. Qf2) 30... Be5 {[%emt 0:00:31]} 31. Qe3 {[%emt 0:02:01]} Qc7 {[%emt 0:00:21] [#]} (31... b6 $16 {might work better.} 32. Ng1 Qf6) 32. Ng1 {[%emt 0:05:24]} (32. Qg5 $1 $18) 32... Bd4 {[%emt 0:00:25]} 33. Qf4 {[%emt 0:00:09]} Be5 {[%emt 0:00:27]} 34. Qg5 {[%emt 0:00:40]} Kg7 {[%emt 0:00:15]} 35. Ne2 {[%emt 0:04:13]} Bf6 {[%emt 0:00:24]} 36. Qf4 {[%emt 0:00:45]} Be5 {[%emt 0:00:11]} 37. Qe4 {[%emt 0:00:22]} Qd6 {[%emt 0:01:10]} 38. Bc2 {[%emt 0:01:12]} Bf6 {[%emt 0:00:35]} 39. Ng1 {[%emt 0:01:35]} Bd4 {[%emt 0:00:20]} 40. Nh3 {[%emt 0:00:26]} ({White should play} 40. Nf3 $18 Bf6 41. Qe3) 40... Bf6 {[%emt 0:00:35]} 41. Nf2 {[%emt 0:00:22]} Bd4 {[%emt 0:00:29]} 42. Nd3 {[%emt 0:00:12]} Bf6 {[%emt 0:00:26]} 43. Qf4 {[%emt 0:00:26]} Qd7 {[%emt 0:01:07]} (43... Qb6 44. Qe3 Bd4) 44. Nxc5 {[%emt 0:00:52]} Qe7 {[%emt 0:00:20]} (44... Qe8 $142 45. Ne4 Bd8) 45. Ne4 {[%emt 0:00:11] Threatens to win with d6.} Be5 {[%emt 0:00:24] [#]} 46. Qg5 {[%emt 0:01:31]} (46. d6 $142 $1 {[%mdl 512]} Qe6 47. Qd2) 46... Qc7 {[%emt 0:00:45]} (46... Qxg5 47. Nxg5 Bd6) 47. d6 {[%emt 0:00:27][%cal Bd5d6,Bd6d7][%mdl 32]} Qa5 {[%emt 0:00:18]} 48. d7 {[%emt 0:00:17]} f6 {[%emt 0:00:10] [#]} 49. Nxf6 $1 {[%emt 0:00:44][%mdl 512] Weighted Error Value: White=0.23 (precise) /Black=0.41} 1-0

[Event "AUT-ch U18 Boys 2022"]
[Site "Sankt Veit an der Glan"]
[Date "2022.04.13"]
[Round "6.2"]
[White "Ilijic, Mihajilo"]
[Black "Schernthaner, David"]
[Result "1/2-1/2"]
[ECO "D47"]
[WhiteElo "2079"]
[BlackElo "2213"]
[Annotator "TA"]
[PlyCount "67"]
[EventDate "2022.04.11"]
[EventType "swiss"]
[EventCountry "AUT"]
[SourceTitle "playchess.com"]
[Source "ChessBase"]
[SourceQuality "1"]
[TimeControl "5400+30"]

{[%evp 27,67,9,10,12,10,11,16,12,13,14,9,6,11,10,11,7,8,10,23,23,23,23,25,4,0,4,4,-7,0,-12,-10,-21,-14,-16,-19,-18,0,0,0,0,0,0]} 1. d4 {[%emt 0:00:09]} d5 {[%emt 0:01:33]} 2. c4 {[%emt 0:00:25]} c6 {[%emt 0:00:10]} 3. Nc3 {[%emt 0:02:17]} Nf6 {[%emt 0:00:23]} 4. Nf3 {[%emt 0:00:07]} e6 {[%emt 0:00:16]} 5. e3 {[%emt 0:00:32][%cal Be2e3,Be3e4][%mdl 32]} Nbd7 {[%emt 0:00:40]} 6. Bd3 {[%emt 0:00:24]} dxc4 {[%emt 0:00:56]} 7. Bxc4 {[%emt 0:00:06]} b5 {[%emt 0:00:15]} 8. Bd3 {[%emt 0:00:30]} Bb7 {[%emt 0:01:54]} 9. e4 {[%emt 0:00:09]} b4 {[%emt 0:01:14]} 10. Na4 {[%emt 0:00:27]} c5 {[%emt 0:00:26]} 11. e5 {[%emt 0:07:02]} Nd5 {[%emt 0:01:46]} 12. O-O {[%emt 0:03:36][%cal Bh1f1,Bf1e1,Be1e6,Be6c6][%mdl 32]} cxd4 {[%emt 0:04:07]} 13. Nxd4 $1 {[%emt 0:00:41][%mdl 4] is more profitable than 13.Re1 at the moment.} Nxe5 {[%emt 0:08:48]} 14. Bb5+ {[%emt 0:06:00]} Nd7 {[%emt 0:00:28]} 15. Re1 $1 {[%emt 0:03:29] D47: Semi-Slav: Meran System.} Rc8 {[%emt 0:04:24] Prevents Bc6.} 16. b3 {[%emt 0:03:29] White wants to play Qh5.} Be7 {[%emt 0:05:29] [#] aiming for ...0-0.} 17. Rxe6 $1 {[%emt 0:16:25][%cal Oc1g5] Strongly threatening Bg5!} O-O $1 {[%emt 0:11:57] [#]} (17... fxe6 $2 18. Nxe6 Qa5 19. Nxg7+ Kf8 20. Bxd7 $18 (20. Ne6+ Kf7 $16)) 18. Nc6 $1 {[%emt 0:02:54]} Bxc6 {[%emt 0:01:05]} 19. Rxc6 {[%emt 0:00:07]} Nc7 {[%emt 0:01:37] Pair of Knights!} 20. Bf1 {[%emt 0:02:35]} Ne5 {[%emt 0:01:41][%csl LRc6,LRd1]} 21. Qxd8 {[%emt 0:00:40]} Rfxd8 {[%emt 0:00:07]} 22. Rc2 {[%emt 0:00:34]} Nd5 {[%emt 0:01:07]} 23. Rxc8 {[%emt 0:00:51]} Rxc8 {[%emt 0:00:04]} 24. Bb2 {[%emt 0:01:38]} Bf6 {[%emt 0:03:05]} 25. Rc1 {[%emt 0:00:57]} (25. Rd1 {looks sharper.} Nc3 26. Rc1 h5 27. Nxc3 bxc3 28. Bxc3 Nf3+ 29. gxf3 Rxc3 30. Rxc3 Bxc3 31. f4) 25... Rxc1 {[%emt 0:00:23] The position is equal.} 26. Bxc1 {[%emt 0:00:04] [#]} Kf8 $146 {[%emt 0:00:53]} ({Predecessor:} 26... Nc6 27. Bb5 Nd4 28. Bc4 Nc3 29. Nxc3 bxc3 30. Kf1 Be7 31. Be3 Nf5 32. Ke2 Nxe3 33. Kxe3 a5 34. Kd3 Bb4 {½-½ (34) Materia,M (2364)-Dudognon,T (2301) Marseille 2021}) 27. Bb2 {[%emt 0:00:51]} Nd7 {[%emt 0:01:16]} 28. Bxf6 {[%emt 0:01:20]} N7xf6 $11 {[%emt 0:00:04][%mdl 4096] Endgame KBN-KNN} 29. Bc4 {[%emt 0:01:28]} Ke7 {[%emt 0:00:07]} 30. Kf1 {[%emt 0:00:26]} Kd6 {[%emt 0:01:30]} 31. Ke2 {[%emt 0:00:15]} h5 {[%emt 0:01:00]} 32. g3 {[%emt 0:01:05]} Ke5 {[%emt 0:00:57]} 33. Kd3 {[%emt 0:00:33]} g5 {[%emt 0:03:39] Prevents f4+.} 34. Nc5 {[%emt 0:02:27] An even fight not without its subleties.  Weighted Error Value: White=0.03 (flawless) /Black=0.02 (flawless)} 1/2-1/2

[Event "AUT-ch U18 Boys 2022"]
[Site "Sankt Veit an der Glan"]
[Date "2022.04.13"]
[Round "6.3"]
[White "Stadlinger, Matthias"]
[Black "Lotz, Dominik"]
[Result "1/2-1/2"]
[ECO "B12"]
[WhiteElo "2013"]
[BlackElo "1583"]
[Annotator "TA"]
[PlyCount "62"]
[EventDate "2022.04.11"]
[EventType "swiss"]
[EventCountry "AUT"]
[SourceTitle "playchess.com"]
[Source "ChessBase"]
[SourceQuality "1"]
[TimeControl "5400+30"]

{[%evp 11,62,-13,22,10,55,56,54,6,12,-16,-18,-53,-52,-84,-68,-118,-12,-12,-14,-31,-28,-50,-49,-190,-164,-209,-106,-109,-83,-254,-30,-36,-47,-115,-127,-133,-136,-159,-156,-905,-144,-144,-58,-87,-78,-70,-71,-67,-22,-26,-21,-83,-48]} 1. e4 {[%emt 0:00:02] L'Ami,E} c6 {[%emt 0:00:20]} 2. d4 {[%emt 0:00:07]} d5 {[%emt 0:00:03]} 3. e5 {[%emt 0:00:10]} Bf5 {[%emt 0:00:23]} 4. Nc3 {[%emt 0:00:10]} e6 {[%emt 0:01:07]} 5. g4 {[%emt 0:00:51]} Bg6 {[%emt 0:00:04]} 6. Nge2 {[%emt 0:00:50]} Be7 {[%emt 0:09:12]} 7. Ng3 {[%emt 0:05:32] B12: Caro-Kann: Advance Variation.} Nd7 {[%emt 0:01:36] [#]} 8. f4 $146 {[%emt 0:01:27]} ({Predecessor:} 8. Be3 Qb6 9. Rb1 f6 10. exf6 gxf6 11. Bg2 Bd6 12. O-O Ne7 13. f4 f5 14. g5 h6 {0-1 (42) Petenyi,T (2359)-L'Ami,E (2611) Plovdiv 2012 CBM 148 [L'Ami,E]}) 8... Bh4 {[%emt 0:00:15]} 9. Be3 {[%emt 0:06:34]} (9. Bh3 $14 {was preferrable.}) 9... Qb6 {[%emt 0:01:35]} 10. Na4 {[%emt 0:10:57]} Qa5+ {[%emt 0:01:36]} 11. c3 {[%emt 0:00:40]} h5 {[%emt 0:08:31]} 12. f5 {[%emt 0:11:32] [#]} exf5 {[%emt 0:04:16]} 13. g5 {[%emt 0:00:31]} ({Better is} 13. b4 $15 Qd8 14. gxf5 Bxf5 15. Bd3) 13... Nf8 {[%emt 0:09:00]} (13... b5 $17 14. Nc5 Nxc5 15. dxc5 f4 16. Bxf4 Be4) 14. Nc5 $11 {[%emt 0:10:22]} Qc7 {[%emt 0:00:18][%cal Of5f4]} 15. Qf3 {[%emt 0:15:15]} b6 {[%emt 0:04:38]} 16. Nd3 {[%emt 0:00:24]} Ne6 {[%emt 0:00:41][%cal Of5f4] [#] Inhibits Qf4. White must now prevent ...f4!} 17. Ke2 {[%emt 0:14:36]} (17. Rg1 $15) 17... Ne7 {[%emt 0:03:25]} ({Resist} 17... Nxg5 18. Qf4 Bxg3 19. Qxg5 $14) 18. Bh3 {[%emt 0:01:02][%cal Rg3f5]} Nxg5 {[%emt 0:06:44]} ({Not} 18... Bxg5 19. Nxf5 Nxf5 20. Bxf5 $17) (18... c5 $19 {aiming for ...cxd4.} 19. Nxf5 Nxf5 20. Bxf5 Bxf5 21. Qxf5 cxd4 22. Bxd4 Qd7) 19. Bxg5 $17 {[%emt 0:00:18]} Bxg5 {[%emt 0:00:01]} 20. Bxf5 $2 {[%emt 0:01:15]} (20. Raf1 $17) 20... Nxf5 $2 {[%emt 0:00:20]} (20... O-O $19 {Hoping for ...c5.} 21. h4 Bh6) 21. Nxf5 $11 {[%emt 0:00:06]} O-O-O {[%emt 0:02:07] Strongly threatening ...h4.} 22. Nd6+ {[%emt 0:01:13]} ({White should try} 22. Rhg1 $15 Bh6 23. Nxh6 Rxh6 24. Nf4) 22... Rxd6 $17 {[%emt 0:01:19]} 23. exd6 {[%emt 0:00:15]} Qxd6 {[%emt 0:00:11]} 24. Qh3+ {[%emt 0:03:10]} Kd8 {[%emt 0:00:39]} 25. Rae1 $2 {[%emt 0:01:13]} (25. Rhe1 $17) 25... Re8+ $2 {[%emt 0:04:23]} (25... Bxd3+ $19 26. Qxd3 Qf4) 26. Kd1 {[%emt 0:00:05] Threatens to win with Rxe8+.} Be4 {[%emt 0:00:11]} ({Black should play} 26... Rxe1+ $17 27. Rxe1 Bxd3 28. Qxd3 Qxh2) 27. Ne5 {[%emt 0:01:59]} Rxe5 {[%emt 0:01:52]} 28. dxe5 {[%emt 0:00:06]} Qg6 {[%emt 0:00:03]} ({Don't play} 28... Qxe5 29. Rhf1 $11) 29. Rhg1 {[%emt 0:02:51]} Bc2+ {[%emt 0:00:54][%mdl 1024] Black has compensation. This bishop pair is nice.} (29... Bf5 $5 {[%cal Rf5h3]} 30. Rxg5 Qxg5 $15) 30. Ke2 {[%emt 0:00:01]} Qe4+ {[%emt 0:00:01]} 31. Kf2 {[%emt 0:00:20]} (31. Kf1 $11 Qf4+ 32. Kg2) 31... Qf4+ {[%emt 0:03:44] Weighted Error Value: White=0.70/Black=0.69} 1/2-1/2

[Event "AUT-ch U18 Boys 2022"]
[Site "Sankt Veit an der Glan"]
[Date "2022.04.13"]
[Round "6.4"]
[White "Loreth, Thomas"]
[Black "Blasge, Tobias"]
[Result "0-1"]
[ECO "B10"]
[WhiteElo "1628"]
[BlackElo "1736"]
[Annotator "NA"]
[PlyCount "56"]
[EventDate "2022.04.11"]
[EventType "swiss"]
[EventCountry "AUT"]
[SourceTitle "playchess.com"]
[Source "ChessBase"]
[SourceQuality "1"]
[TimeControl "5400+30"]

1. e4 {[%emt 0:00:06]} c6 {[%emt 0:00:03]} 2. c4 {[%emt 0:01:41]} d5 {[%emt 0:00:41]} 3. cxd5 {[%emt 0:00:54]} cxd5 {[%emt 0:00:05]} 4. exd5 {[%emt 0:00:04]} Nf6 {[%emt 0:03:04]} 5. Nc3 {[%emt 0:01:22]} g6 {[%emt 0:09:07]} 6. Bc4 {[%emt 0:05:48]} Bg7 {[%emt 0:00:06]} 7. d3 {[%emt 0:04:34]} O-O {[%emt 0:01:25]} 8. Be3 {[%emt 0:00:58]} b5 {[%emt 0:09:06]} 9. Bxb5 {[%emt 0:01:29]} Nxd5 {[%emt 0:00:34]} 10. Qb3 {[%emt 0:00:38]} Be6 {[%emt 0:17:39]} 11. Bc4 {[%emt 0:02:18]} Nxe3 {[%emt 0:02:26]} 12. fxe3 {[%emt 0:01:21]} Nc6 {[%emt 0:00:00]} 13. Bxe6 {[%emt 0:01:05]} Rb8 {[%emt 0:00:23]} 14. Qc2 {[%emt 0:00:55]} Nb4 {[%emt 0:04:07]} 15. Qb3 {[%emt 0:05:07]} Nxd3+ {[%emt 0:04:16]} 16. Ke2 {[%emt 0:00:05]} Rxb3 {[%emt 0:00:30]} 17. Bxb3 {[%emt 0:00:05]} Nxb2 {[%emt 0:03:34]} 18. Nd5 {[%emt 0:01:03]} e6 {[%emt 0:05:01]} 19. Nb4 {[%emt 0:00:21]} Qd6 {[%emt 0:11:38]} 20. Nc2 {[%emt 0:00:22]} Qd3+ {[%emt 0:01:34]} 21. Kf3 {[%emt 0:01:03]} Nd1 {[%emt 0:05:16]} 22. Rc1 {[%emt 0:01:01]} Qf1+ {[%emt 0:01:08]} 23. Kg3 {[%emt 0:00:44]} Be5+ {[%emt 0:02:04]} 24. Kh4 {[%emt 0:00:35]} Bf6+ {[%emt 0:02:13]} 25. Kh3 {[%emt 0:00:50]} Nf2+ {[%emt 0:06:53]} 26. Kg3 {[%emt 0:00:02]} Bh4+ {[%emt 0:01:10]} 27. Kxh4 {[%emt 0:00:16]} Qxc1 {[%emt 0:00:04]} 28. Ne2 {[%emt 0:00:42]} Qxh1 {[%emt 0:00:08]} 0-1